fUSD/lending_fUSD_20240803
["ID","MTS","AMOUNT","RATE_DAILY","PERIOD"]
[333968973,1722651075608,-818.78,0.00017534,2]
[333968974,1722651075618,-1083.61,0.00017534,2]
[333968975,1722651075627,-500.0,0.00017534,2]
[333968976,1722651075636,-500.0,0.00017534,2]
[333968977,1722651075645,-338.29055246,0.00017534,2]
[333968978,1722651075655,-500.0,0.00017534,2]
[333968979,1722651075664,-500.0,0.00017534,2]
[333968980,1722651075673,-557.05,0.00017534,2]
[333968981,1722651075683,-783.6,0.00017534,2]
[333968982,1722651075691,-500.0,0.00017534,2]
[333968983,1722651075701,-720.07,0.00017534,2]
[333968984,1722651075711,-586.09,0.00017534,2]
[333968985,1722651075719,-500.0,0.00017534,2]
[333968986,1722651075728,-500.0,0.00017534,2]
[333968987,1722651075738,-1062.03,0.00017534,2]
[333968988,1722651075747,-500.0,0.00017534,2]
[333968989,1722651075755,-500.0,0.00017534,2]
[333968990,1722651075766,-500.0,0.00017534,2]
[333968991,1722651075777,-1407.4,0.00017534,2]
[333968992,1722651075786,-500.0,0.00017534,2]
[333968993,1722651075795,-773.3,0.00017534,2]
[333968994,1722651075804,-500.0,0.00017534,2]
[333968995,1722651075814,-500.0,0.00017534,2]
[333968996,1722651075823,-500.0,0.00017534,2]
[333968997,1722651075833,-500.0,0.00017534,2]
[333968998,1722651075843,-500.0,0.00017534,2]
[333968999,1722651075853,-556.21,0.00017534,2]
[333969000,1722651075863,-500.0,0.00017534,2]
[333969001,1722651075872,-500.0,0.00017534,2]
[333969002,1722651075881,-576.3,0.00017534,2]
[333969003,1722651075890,-1453.56,0.00017534,2]
[333969004,1722651075900,-500.0,0.00017534,2]
[333969005,1722651075909,-500.0,0.00017534,2]
[333969006,1722651075918,-500.0,0.00017534,2]
[333969007,1722651075927,-500.0,0.00017534,2]
[333969008,1722651075937,-566.04,0.00017534,2]
[333969009,1722651075947,-502.48,0.00017534,2]
[333969010,1722651075956,-500.0,0.00017534,2]
[333969011,1722651075965,-503.68,0.00017534,2]
[333969012,1722651075974,-500.0,0.00017534,2]
[333969013,1722651075983,-500.0,0.00017534,2]
[333969014,1722651075993,-989.64,0.00017534,2]
[333969015,1722651076002,-500.0,0.00017534,2]
[333969016,1722651076011,-604.62,0.00017534,2]
[333969017,1722651076021,-1296.51,0.00017534,2]
[333969018,1722651076030,-944.97,0.00017534,2]
[333969019,1722651076039,-331.17990629,0.00017534,2]
[333969020,1722651076049,-500.0,0.00017534,2]
[333969021,1722651076058,-500.0,0.00017534,2]
[333969022,1722651076067,-987.93,0.00017534,2]
[333969023,1722651076076,-1636.9,0.00017534,2]
[333969024,1722651076085,-500.0,0.00017534,2]
[333969025,1722651076094,-500.0,0.00017534,2]
[333969026,1722651076104,-818.58,0.00017534,2]
[333969027,1722651076113,-500.0,0.00017534,2]
[333969028,1722651076122,-665.99,0.00017534,2]
[333969029,1722651076131,-1211.6,0.00017534,2]
[333969030,1722651076140,-500.0,0.00017534,2]
[333969031,1722651076150,-624.91,0.00017534,2]
[333969032,1722651076159,-500.0,0.00017534,2]
[333969033,1722651076168,-500.0,0.00017534,2]
[333969034,1722651076178,-581.89,0.00017534,2]
[333969035,1722651076187,-1055.76,0.00017534,2]
[333969036,1722651076196,-620.03,0.00017534,2]
[333969037,1722651076205,-500.0,0.00017534,2]
[333969038,1722651076215,-200.0,0.00017534,2]
[333969039,1722651076224,-500.0,0.00017534,2]
[333969040,1722651076233,-865.01,0.00017534,2]
[333969041,1722651076242,-1645.77,0.00017534,2]
[333969042,1722651076251,-500.0,0.00017534,2]
[333969043,1722651076261,-500.0,0.00017534,2]
[333969044,1722651076272,-500.0,0.00017534,2]
[333969045,1722651076282,-500.0,0.00017534,2]
[333969046,1722651076291,-151.0,0.00017534,2]
[333969047,1722651076300,-500.0,0.00017534,2]
[333969048,1722651076310,-596.17,0.00017534,2]
[333969049,1722651076319,-1449.05,0.00017534,2]
[333969050,1722651076329,-527.57,0.00017534,2]
[333969051,1722651076338,-500.0,0.00017534,2]
[333969052,1722651076347,-500.0,0.00017534,2]
[333969053,1722651076357,-500.0,0.00017534,2]
[333969054,1722651076366,-500.0,0.00017534,2]
[333969055,1722651076375,-1853.08,0.00017534,2]
[333969056,1722651076386,-500.0,0.00017534,2]
[333969057,1722651076396,-500.0,0.00017534,2]
[333969058,1722651076405,-690.06,0.00017534,2]
[333969059,1722651076415,-500.0,0.00017534,2]
[333969060,1722651076424,-1244.28,0.00017534,2]
[333969061,1722651076434,-607.44352776,0.00017534,2]
[333969062,1722651076444,-500.0,0.00017534,2]
[333969063,1722651076453,-597.13,0.00017534,2]
[333969064,1722651076463,-900.1,0.00017534,2]
[333969065,1722651076473,-545.56,0.00017534,2]
[333969066,1722651076482,-500.0,0.00017534,2]
[333969067,1722651076491,-581.4,0.00017534,2]
[333969068,1722651076501,-500.0,0.00017534,2]
[333969069,1722651076510,-500.0,0.00017534,2]
[333969070,1722651076525,-564.41,0.00017534,2]
[333969071,1722651076535,-500.0,0.00017534,2]
[333969072,1722651076544,-1004.46,0.00017534,2]
[333969073,1722651076554,-660.08,0.00017534,2]
[333969074,1722651076563,-500.0,0.00017534,2]
[333969075,1722651076573,-500.0,0.00017534,2]
[333969076,1722651076582,-500.0,0.00017534,2]
[333969077,1722651076591,-764.93,0.00017534,2]
[333969078,1722651076601,-154.89,0.00017534,2]
[333969079,1722651076610,-500.0,0.00017534,2]
[333969080,1722651076619,-500.0,0.00017534,2]
[333969081,1722651076629,-906.28,0.00017534,2]
[333969082,1722651076638,-500.0,0.00017534,2]
[333969083,1722651076647,-994.27,0.00017534,2]
[333969084,1722651076657,-555.04,0.00017534,2]
[333969085,1722651076666,-822.72,0.00017534,2]
[333969086,1722651076676,-500.0,0.00017534,2]
[333969087,1722651076685,-676.25,0.00017534,2]
[333969088,1722651076695,-945.6,0.00017534,2]
[333969089,1722651076826,-500.0,0.00017534,2]
[333969090,1722651076844,-637.84,0.00017534,2]
[333969091,1722651076854,-500.0,0.00017534,2]
[333969092,1722651076864,-565.72,0.00017534,2]
[333969093,1722651076873,-649.9,0.00017534,2]
[333969094,1722651076883,-1283.74,0.00017534,2]
[333969095,1722651076893,-500.0,0.00017534,2]
[333969096,1722651076903,-500.0,0.00017534,2]
[333969097,1722651076912,-500.0,0.00017534,2]
[333969098,1722651076922,-937.4,0.00017534,2]
[333969099,1722651076932,-756.75,0.00017534,2]
[333969100,1722651076942,-510.01,0.00017534,2]
[333969101,1722651076952,-1446.04,0.00017534,2]
[333969102,1722651076961,-500.0,0.00017534,2]
[333969103,1722651076971,-500.0,0.00017534,2]
[333969104,1722651076981,-500.0,0.00017534,2]
[333969105,1722651076991,-871.71,0.00017534,2]
[333969106,1722651077002,-6125.04,0.00017534,2]
[333969107,1722651077012,-963.47,0.00017534,2]
[333969108,1722651077022,-500.0,0.00017534,2]
[333969109,1722651077032,-1126.5,0.00017534,2]
[333969110,1722651077042,-500.0,0.00017534,2]
[333969111,1722651077051,-790.28,0.00017534,2]
[333969112,1722651077061,-500.0,0.00017534,2]
[333969113,1722651077072,-500.0,0.00017534,2]
[333969114,1722651077081,-500.0,0.00017534,2]
[333969115,1722651077091,-1355.78,0.00017534,2]
[333969116,1722651077101,-500.0,0.00017534,2]
[333969117,1722651077111,-558.35,0.00017534,2]
[333969118,1722651077121,-620.38,0.00017534,2]
[333969119,1722651077131,-643.09,0.00017534,2]
[333969120,1722651077141,-1008.39,0.00017534,2]
[333969121,1722651077151,-1558.02,0.00017534,2]
[333969122,1722651077160,-500.0,0.00017534,2]
[333969123,1722651077171,-590.58,0.00017534,2]
[333969124,1722651077181,-790.0,0.00017534,2]
[333969125,1722651077190,-889.11,0.00017534,2]
[333969126,1722651077200,-500.0,0.00017534,2]
[333969127,1722651077210,-500.0,0.00017534,2]
[333969128,1722651077220,-463.97410168,0.00017534,2]
[333969129,1722651077229,-1340.11,0.00017534,2]
[333969130,1722651077239,-25180.43,0.00017534,2]
[333969131,1722651077249,-532.45,0.00017534,2]
[333969132,1722651077258,-500.0,0.00017534,2]
[333969133,1722651077270,-500.0,0.00017534,2]
[333969134,1722651077280,-2030.71,0.00017534,2]
[333969135,1722651077290,-500.0,0.00017534,2]
[333969136,1722651077300,-992.05,0.00017534,2]
[333969137,1722651077310,-914.61,0.00017534,2]
[333969138,1722651077319,-1342.87,0.00017534,2]
[333969139,1722651077329,-1299.46,0.00017534,2]
[333969140,1722651077339,-500.0,0.00017534,2]
[333969141,1722651077348,-966.12,0.00017534,2]
[333969142,1722651077358,-2824.09,0.00017534,2]
[333969143,1722651077368,-500.0,0.00017534,2]
[333969144,1722651077378,-49366.31,0.00017534,2]
[333969145,1722651077388,-500.0,0.00017534,2]
[333969146,1722651077398,-500.0,0.00017534,2]
[333969147,1722651077408,-879.64,0.00017534,2]
[333969148,1722651077418,-781.04,0.00017534,2]
[333969149,1722651077428,-500.0,0.00017534,2]
[333969150,1722651077438,-500.0,0.00017534,2]
[333969151,1722651077448,-500.0,0.00017534,2]
[333969152,1722651077458,-1748.5,0.00017534,2]
[333969153,1722651077468,-759.45,0.00017534,2]
[333969154,1722651077477,-500.0,0.00017534,2]
[333969155,1722651077487,-500.0,0.00017534,2]
[333969156,1722651077497,-1651.88,0.00017534,2]
[333969157,1722651077507,-500.0,0.00017534,2]
[333969158,1722651077518,-500.0,0.00017534,2]
[333969159,1722651077528,-560.17,0.00017534,2]
[333969160,1722651077538,-671.92,0.00017534,2]
[333969161,1722651077548,-500.0,0.00017534,2]
[333969162,1722651077558,-500.0,0.00017534,2]
[333969163,1722651077568,-6045.32,0.00017534,2]
[333969164,1722651077577,-544.61,0.00017534,2]
[333969165,1722651077587,-500.0,0.00017534,2]
[333969166,1722651077597,-500.0,0.00017534,2]
[333969167,1722651077607,-1732.16,0.00017534,2]
[333969168,1722651077617,-289.61113574,0.00017534,2]
[333969169,1722651077627,-692.02,0.00017534,2]
[333969170,1722651077637,-627.88,0.00017534,2]
[333969171,1722651077647,-925.4,0.00017534,2]
[333969172,1722651077656,-949.22,0.00017534,2]
[333969173,1722651077666,-500.0,0.00017534,2]
[333969174,1722651077676,-588.27,0.00017534,2]
[333969175,1722651077686,-887.38,0.00017534,2]
[333969176,1722651077696,-1851.33,0.00017534,2]
[333969177,1722651077706,-384.16310919,0.00017534,2]
[333969178,1722651077715,-500.0,0.00017534,2]
[333969179,1722651077725,-500.0,0.00017534,2]
[333969180,1722651077735,-500.0,0.00017534,2]
[333969181,1722651077746,-1097.33,0.00017534,2]
[333969182,1722651077756,-500.0,0.00017534,2]
[333969183,1722651077769,-3456.06,0.00017534,2]
[333969184,1722651077780,-4090.13,0.00017534,2]
[333969185,1722651077789,-10163.74,0.00017534,2]
[333969186,1722651077799,-706.58,0.00017534,2]
[333969187,1722651077808,-7778.03,0.00017534,2]
[333969188,1722651077820,-659.3,0.00017534,2]
[333969189,1722651077830,-500.0,0.00017534,2]
[333969190,1722651077840,-3815.12,0.00017534,2]
[333969191,1722651077851,-1729.88,0.00017534,2]
[333969192,1722651077862,-666.18,0.00017534,2]
[333969193,1722651077872,-816.75,0.00017534,2]
[333969194,1722651077882,-3818.48,0.00017534,2]
[333969195,1722651077892,-812.49,0.00017534,2]
[333969196,1722651077903,-1689.63,0.00017534,2]
[333969197,1722651077913,-500.0,0.00017534,2]
[333969198,1722651077923,-500.0,0.00017534,2]
[333969199,1722651077933,-4172.06,0.00017534,2]
[333969200,1722651077943,-5172.72,0.00017534,2]
[333969201,1722651077952,-473.72882542,0.00017534,2]
[333969202,1722651077963,-11958.78,0.00017534,2]
[333969203,1722651077973,-500.0,0.00017534,2]
[333969204,1722651077983,-1067.53,0.00017534,2]
[333969205,1722651077993,-1558.03,0.00017534,2]
[333969206,1722651078003,-500.0,0.00017534,2]
[333969207,1722651078013,-1050.19,0.00017534,2]
[333969208,1722651078022,-1012.98,0.00017534,2]
[333969209,1722651078032,-500.0,0.00017534,2]
[333969210,1722651078043,-733.26,0.00017534,2]
[333969211,1722651078053,-500.0,0.00017534,2]
[333969212,1722651078064,-2806.73,0.00017534,2]
[333969213,1722651078074,-2322.26,0.00017534,2]
[333969214,1722651078084,-997.24,0.00017534,2]
[333969215,1722651078094,-2059.84,0.00017534,2]
[333969216,1722651078104,-942.89,0.00017534,2]
[333969217,1722651078114,-673.02,0.00017534,2]
[333969218,1722651078125,-2054.3,0.00017534,2]
[333969219,1722651078135,-500.0,0.00017534,2]
[333969220,1722651078145,-500.0,0.00017534,2]
[333969221,1722651078155,-500.0,0.00017534,2]
[333969222,1722651078165,-500.0,0.00017534,2]
[333969223,1722651078175,-536.32,0.00017534,2]
[333969224,1722651078185,-1241.54,0.00017534,2]
[333969225,1722651078195,-500.0,0.00017534,2]
[333969226,1722651078204,-1590.63,0.00017534,2]
[333969227,1722651078214,-871.6,0.00017534,2]
[333969228,1722651078224,-1313.97,0.00017534,2]
[333969229,1722651078234,-802.19,0.00017534,2]
[333969230,1722651078244,-2971.93,0.00017534,2]
[333969231,1722651078254,-3990.14,0.00017534,2]
[333969232,1722651078265,-203.37409998,0.00017534,2]
[333969233,1722651078275,-926.65,0.00017534,2]
[333969234,1722651078285,-2336.97,0.00017534,2]
[333969235,1722651078295,-523.19,0.00017534,2]
[333969236,1722651078304,-500.0,0.00017534,2]
[333969237,1722651078314,-741.17,0.00017534,2]
[333969238,1722651078324,-500.0,0.00017534,2]
[333969239,1722651078334,-500.0,0.00017534,2]
[333969240,1722651078343,-1859.03,0.00017534,2]
[333969241,1722651078352,-673.55,0.00017534,2]
[333969242,1722651078362,-1318.07,0.00017534,2]
[333969243,1722651078372,-505.75,0.00017534,2]
[333969244,1722651078382,-540.6,0.00017534,2]
[333969245,1722651078392,-5540.76,0.00017534,2]
[333969246,1722651078402,-1459.74,0.00017534,2]
[333969247,1722651078411,-3355.43,0.00017534,2]
[333969248,1722651078421,-500.0,0.00017534,2]
[333969249,1722651078432,-600.93,0.00017534,2]
[333969250,1722651078442,-500.0,0.00017534,2]
[333969251,1722651078452,-500.0,0.00017534,2]
[333969252,1722651078461,-500.0,0.00017534,2]
[333969253,1722651078471,-5339.03,0.00017534,2]
[333969254,1722651078481,-500.0,0.00017534,2]
[333969255,1722651078491,-500.0,0.00017534,2]
[333969256,1722651078501,-1543.59,0.00017534,2]
[333969257,1722651078511,-723.18,0.00017534,2]
[333969258,1722651078523,-524.15,0.00017534,2]
[333969259,1722651078533,-500.0,0.00017534,2]
[333969260,1722651078543,-500.0,0.00017534,2]
[333969261,1722651078554,-500.0,0.00017534,2]
[333969262,1722651078564,-691.88,0.00017534,2]
[333969263,1722651078574,-760.85,0.00017534,2]
[333969264,1722651078584,-1015.01,0.00017534,2]
[333969265,1722651078594,-500.0,0.00017534,2]
[333969266,1722651078605,-2306.27,0.00017534,2]
[333969267,1722651078615,-2685.23,0.00017534,2]
[333969268,1722651078625,-895.56,0.00017534,2]
[333969269,1722651078634,-6234.07,0.00017534,2]
[333969270,1722651078644,-1768.15,0.00017534,2]
[333969271,1722651078654,-3831.59,0.00017534,2]
[333969272,1722651078664,-500.0,0.00017534,2]
[333969273,1722651078674,-785.32,0.00017534,2]
[333969274,1722651078684,-1280.72,0.00017534,2]
[333969275,1722651078695,-13292.19,0.00017534,2]
[333969276,1722651078705,-604.54036122,0.00017534,2]
[333969277,1722651079587,-1300.0,0.00017534,2]
[333969282,1722651249466,976.99719009,0.00010123,2]
[333969283,1722651273324,511.91390026,0.00010123,2]
[333969284,1722651374312,233.2900269,0.00010123,2]
[333969285,1722651542785,-422.79888275,0.00010222,2]
[333969315,1722652233313,-205.0,9.8e-05,2]
[333969316,1722652233323,-258.20111725,0.00010222,2]
[333969317,1722652233333,-1414.75108255,0.00010222,2]
[333969318,1722652233343,-2792.62920387,0.0001093,2]
[333969319,1722652233464,-2886.54538565,0.0001093,2]
[333969320,1722652233477,-616.616,0.0001093,2]
[333969321,1722652233489,-7446.10655313,0.0001093,2]
[333969322,1722652233502,-1797.40548677,0.0001093,2]
[333969323,1722652233514,-522.58091288,0.0001093,2]
[333969324,1722652233526,-334.50747262,0.0001093,2]
[333969325,1722652233628,-18883.59641549,0.0001093,2]
[333969326,1722652233638,-150.0,0.00010998,2]
[333969327,1722652233648,-5099.5903114,0.00010998,2]
[333969328,1722652233658,-20209.38353273,0.00010999,2]
[333969329,1722652233668,-85217.26832402,0.00011,2]
[333969330,1722652233681,-6536.8573978,0.00011,2]
[333969331,1722652233693,-1656.34148106,0.00011,2]
[333969332,1722652233704,-399.12662878,0.00011,2]
[333969333,1722652233715,-335.92939992,0.00011,2]
[333969334,1722652233727,-348.89010204,0.00011,2]
[333969338,1722652234144,-350.0,0.00011,2]
[333969343,1722652238818,-1328.83403623,0.00011,2]
[333969350,1722652238870,-1148.76186757,0.00011,2]
[333969352,1722652238884,-30743.60152304,0.00011,2]
[333969354,1722652238895,-504.3514221,0.00011,2]
[333969356,1722652238906,-1656.16260974,0.00011,2]
[333969359,1722652238918,-556.469982,0.00011,2]
[333969361,1722652238930,-636.52329979,0.00011,2]
[333969363,1722652238941,-852.53696745,0.00011,2]
[333969365,1722652238953,-2302.89454731,0.00011,2]
[333969367,1722652238965,-22804.64669493,0.00011,2]
[333969369,1722652238974,-2091.75261198,0.000119,2]
[333969371,1722652238984,-154.83523565,0.000119,2]
[333969373,1722652238993,-550.0,0.00012,2]
[333969375,1722652239003,-6821.76545744,0.00012,2]
[333969499,1722652240278,-1139.11643078,0.00012,2]
[333969502,1722652240289,-963.963,0.00012,2]
[333969505,1722652240301,-6261.11776499,0.00012,2]
[333969507,1722652240313,-2000.0,0.00012,2]
[333969509,1722652240324,-3030.65917779,0.00012,2]
[333969511,1722652240339,-2091.75261189,0.00012819,2]
[333969513,1722652240355,-154.83523558,0.00012934,2]
[333969515,1722652240365,-864.56,0.00013525,2]
[333969517,1722652240374,-498.58,0.00013699,2]
[333969519,1722652240384,-2091.75261189,0.00013738,2]
[333969521,1722652240393,-154.83523558,0.00013968,2]
[333969523,1722652240403,-150.41,0.00013973,2]
[333969525,1722652240412,-250.0,0.00014219,2]
[333969526,1722652240421,-153.09,0.00014252,30]
[333969528,1722652240431,-760.0,0.00014263,2]
[333969530,1722652240442,-250.0,0.00014337,2]
[333969532,1722652240452,-2043.41846071,0.00014658,2]
[333969536,1722652240476,-48.33415118,0.00014658,2]
[333969537,1722652240486,-625.18620323,0.00015,2]
[333969539,1722652240496,-573.26540146,0.00015,14]
[333969541,1722652240506,-5009.23763442,0.00015,14]
[333969543,1722652240518,-661.0,0.00015,14]
[333969546,1722652240530,-284.52359772,0.00015,14]
[333969548,1722652240542,-3602.30084797,0.00015,14]
[333969550,1722652240551,-154.83523558,0.00015002,2]
[333969551,1722652240560,-811.0,0.00015155,2]
[333969553,1722652240570,-446.0,0.00015155,2]
[333969554,1722652240581,-449.972,0.00015155,2]
[333969555,1722652240601,-150.0,0.00015155,2]
[333969556,1722652240611,-1552.956,0.00015155,2]
[333969557,1722652240621,-1370.0,0.00015155,2]
[333969558,1722652240630,-921.67,0.00015155,2]
[333969559,1722652240639,-1925.0,0.00015155,2]
[333969560,1722652240648,-1581.0,0.00015155,2]
[333969561,1722652240658,-918.486,0.00015155,2]
[333969563,1722652240668,-159.96,0.0001533,2]
[333969565,1722652240678,-240.0,0.00015416,2]
[333969567,1722652240688,-2091.75261189,0.00015577,2]
[333969569,1722652240698,-208.94,0.00015659,2]
[333969570,1722652240708,-864.56,0.00015789,2]
[333969572,1722652240717,-500.63,0.00016,2]
[333969574,1722652240727,-154.83523558,0.00016037,2]
[333969576,1722652240736,-760.0,0.00016046,2]
[333969578,1722652240746,-200.0,0.00016274,2]
[333969580,1722652240756,-834.36,0.00016311,2]
[333969582,1722652240766,-834.36,0.00016311,2]
[333969584,1722652240776,-420.52,0.00016311,2]
[333969586,1722652240785,-420.52,0.00016311,2]
[333969588,1722652240795,-171.23761401,0.00016338,2]
[333969589,1722652240804,-204.3760443,0.00016338,2]
[333969591,1722652240814,-1046.8951,0.00016338,2]
[333969593,1722652240823,-509.358,0.00016338,2]
[333969595,1722652240844,-553.9471,0.00016338,2]
[333969597,1722652240855,-2060.67085165,0.00016338,2]
[333969600,1722652240868,-3863.02154835,0.00016338,2]
[333969602,1722652240878,-719.00640999,0.00016338,2]
[333969606,1722652240917,-330.83153762,0.00016338,2]
[333969609,1722652240929,-872.56535239,0.00016338,2]
[333969611,1722652240939,-7500.0,0.00016338,2]
[333969613,1722652240948,-16119.97013371,0.00016428,2]
[333969615,1722652240960,-437.95393699,0.00016428,2]
[333969617,1722652240972,-891.06513646,0.00016428,2]
[333969619,1722652240984,-814.74037197,0.00016428,2]
[333969622,1722652241007,-1577.86863335,0.00016428,2]
[333969624,1722652241019,-2581.58,0.00016428,2]
[333969626,1722652241032,-6457.2,0.00016428,2]
[333969629,1722652241043,-360.38242241,0.00016428,2]
[333969630,1722652241055,-1618.10000002,0.00016428,2]
[333969632,1722652241067,-174.91264389,0.00016428,2]
[333969634,1722652241077,-160.86,0.00016428,2]
[333969636,1722652241098,-653.41792721,0.00016435,2]
[333969638,1722652241108,-657.43774298,0.00016436,3]
[333969640,1722652241120,-500.0,0.00016438,2]
[333969642,1722652241131,-500.0,0.00016438,2]
[333969644,1722652241140,-607.32,0.00016438,2]
[333969646,1722652241150,-1.05168592,0.00016438,2]
[333969648,1722652241163,-498.94831408,0.00016438,2]
[333969650,1722652241172,-500.0,0.00016438,2]
[333969652,1722652241182,-70.6253666,0.00016438,2]
[333969826,1722652243357,-150.11721836,0.00016328,2]
[333969828,1722652243367,-342.01078164,0.00016438,2]
[333969943,1722652244540,-87.36385176,0.00016438,2]
[333969945,1722652244550,-412.63614824,0.00016438,2]
[333969958,1722652244670,-507.53028692,0.00016311,2]
[333969960,1722652244682,-188.66971308,0.00016311,2]
[333969962,1722652244692,-87.36385176,0.00016438,2]
[333969963,1722652244702,-500.0,0.00016438,2]
[333969964,1722652244712,-500.0,0.00016438,2]
[333969965,1722652244721,-500.0,0.00016438,2]
[333969966,1722652244731,-602.49720796,0.00016438,2]
[333969967,1722652244743,-92.42279204,0.00016438,2]
[333969968,1722652244753,-265.27203343,0.00016438,2]
[333969969,1722652244764,-234.72796657,0.00016438,2]
[333969971,1722652244773,-23.54721976,0.00016438,2]
[333969973,1722652244785,-476.45278024,0.00016438,2]
[333969975,1722652244794,-500.0,0.00016438,2]
[333969977,1722652244803,-569.35060951,0.00016438,2]
[333969979,1722652244813,-500.0,0.00016438,2]
[333969981,1722652244823,-571.6,0.00016438,2]
[333969983,1722652244832,-869.08,0.00016438,2]
[333969985,1722652244845,-684.79,0.00016438,2]
[333969987,1722652244854,-500.0,0.00016438,2]
[333969989,1722652244863,-500.0,0.00016438,2]
[333969991,1722652244872,-500.0,0.00016438,2]
[333969993,1722652244881,-500.0,0.00016438,2]
[333969995,1722652244891,-500.0,0.00016438,2]
[333969997,1722652244900,-500.0,0.00016438,2]
[333969999,1722652244910,-500.0,0.00016438,2]
[333970001,1722652244919,-500.0,0.00016438,2]
[333970003,1722652244928,-347.85135327,0.00016438,2]
[333970004,1722652244938,-500.0,0.00016438,2]
[333970006,1722652244948,-500.0,0.00016438,2]
[333970008,1722652244958,-500.0,0.00016438,2]
[333970010,1722652244968,-500.0,0.00016438,2]
[333970012,1722652244977,-919.68,0.00016438,2]
[333970014,1722652244987,-712.57,0.00016438,2]
[333970016,1722652244997,-641.35,0.00016438,2]
[333970018,1722652245006,-204.41015497,0.00016438,2]
[333970073,1722652246540,-295.58984503,0.00016438,2]
[333970074,1722652246550,-500.0,0.00016438,2]
[333970075,1722652246559,-500.0,0.00016438,2]
[333970076,1722652246568,-500.0,0.00016438,2]
[333970077,1722652246577,-558.75,0.00016438,2]
[333970078,1722652246591,-500.0,0.00016438,2]
[333970079,1722652246601,-500.0,0.00016438,2]
[333970080,1722652246611,-337.35290101,0.00016438,2]
[333970081,1722652246622,-334.37709899,0.00016438,2]
[333970082,1722652246632,-153.56613797,0.00016438,2]
[333970083,1722652246643,-346.43386203,0.00016438,2]
[333970084,1722652246652,-620.75,0.00016438,2]
[333970085,1722652246662,-500.0,0.00016438,2]
[333970086,1722652246904,-500.0,0.00016438,2]
[333970087,1722652246915,-500.0,0.00016438,2]
[333970088,1722652246925,-787.13,0.00016438,2]
[333970089,1722652246934,-759.54,0.00016438,2]
[333970090,1722652246943,-500.0,0.00016438,2]
[333970091,1722652246952,-500.0,0.00016438,2]
[333970092,1722652246962,-500.0,0.00016438,2]
[333970093,1722652246971,-500.0,0.00016438,2]
[333970094,1722652246981,-500.0,0.00016438,2]
[333970095,1722652246991,-553.08,0.00016438,2]
[333970096,1722652247001,-500.0,0.00016438,2]
[333970097,1722652247011,-500.0,0.00016438,2]
[333970098,1722652247021,-195.83941369,0.00016438,2]
[333970099,1722652247031,-500.0,0.00016438,2]
[333970100,1722652247041,-500.0,0.00016438,2]
[333970101,1722652247050,-500.0,0.00016438,2]
[333970102,1722652247060,-500.0,0.00016438,2]
[333970103,1722652247069,-500.0,0.00016438,2]
[333970104,1722652247079,-500.0,0.00016438,2]
[333970105,1722652247091,-500.0,0.00016438,2]
[333970106,1722652247102,-26.68076322,0.00016438,2]
[333970107,1722652247116,-599.77923678,0.00016438,2]
[333970108,1722652247129,-500.0,0.00016438,2]
[333970109,1722652247139,-501.56857627,0.00016438,2]
[333970110,1722652247148,-500.0,0.00016438,2]